bitfinex/quotes_SOLUSD_20240808
["timestamp","ask_amount","ask_price","bid_price","bid_amount"]
[1723093828294,0.17,152.86,152.76,45.0]
[1723093828500,0.17,152.86,152.77,1.30878894]
[1723093829095,0.17,152.86,152.76,45.0]
[1723093829395,0.34,152.86,152.76,45.0]
[1723093829894,0.34,152.86,152.75,0.17]
[1723093829895,6.1297,152.85,152.74,0.8228107]
[1723093830078,15.7245,152.84,152.74,0.8228107]
[1723093830277,20.17,152.83,152.74,0.8228107]
[1723093830487,0.17,152.82,152.74,0.8228107]
[1723093830688,0.17,152.83,152.74,0.8228107]
[1723093831778,15.7245,152.84,152.75,1.47891227]
[1723093832378,15.7245,152.84,152.75,0.17]
[1723093833803,0.17,152.83,152.75,1.3089131]
[1723093833977,0.17,152.83,152.74,0.8228107]
[1723093834293,15.7245,152.84,152.74,0.8228107]
[1723093834807,15.7245,152.84,152.75,37.03]
[1723093835042,273.6,152.96,152.75,37.03]
[1723093835043,22.4435,152.92,152.78,37.03]
[1723093835180,22.4435,152.92,152.79,45.17]
[1723093835181,28.9829,152.92,152.79,45.17]
[1723093835681,6.5398,152.91,152.79,45.17]
[1723093835880,395.6403,152.9,152.79,45.0]
[1723093836071,16.3973,152.89,152.79,45.0]
[1723093836293,0.17,152.88,152.79,45.0]
[1723093836503,6.0462,152.87,152.74,0.8228107]
[1723093836699,0.17,152.86,152.75,0.17]
[1723093836904,0.17,152.86,152.75,1.4789104]
[1723093837109,0.17,152.86,152.75,38.5089104]
[1723093837278,6.0462,152.87,152.78,37.03]
[1723093837478,6.0462,152.87,152.79,46.47843205]
[1723093837700,6.0462,152.87,152.8,1.30834641]
[1723093837998,6.0462,152.87,152.79,45.17]
[1723093838184,6.0462,152.87,152.79,45.0]
[1723093838576,6.0462,152.87,152.8,1.30862538]
[1723093839179,6.0462,152.87,152.79,45.0]
[1723093839990,6.0462,152.87,152.8,1.30862812]
[1723093841302,0.17,152.86,152.79,45.0]
[1723093841483,0.17,152.86,152.75,37.03]
[1723093842100,6.0462,152.87,152.75,37.03]
[1723093842411,0.17,152.86,152.75,37.03]
[1723093843278,6.0462,152.87,152.76,46.64873612]
[1723093843504,6.0462,152.87,152.77,1.30862536]
[1723093843804,6.0462,152.87,152.78,0.17]
[1723093844010,6.0462,152.87,152.78,1.47862771]
[1723093846098,6.0462,152.87,152.78,1.30862771]
[1723093846306,6.0462,152.87,152.76,45.0]
[1723093846307,0.17,152.86,152.76,45.0]
[1723093846514,6.5966,152.84,152.74,0.8228107]
[1723093846806,6.5966,152.84,152.75,1.30907096]
[1723093848185,6.5966,152.84,152.74,2.13175024]
[1723093848508,6.5966,152.84,152.75,37.37]
[1723093848711,6.5966,152.84,152.76,45.0]
[1723093848907,6.5966,152.84,152.74,0.8228107]
[1723093849306,6.5966,152.84,152.74,2.13162133]
[1723093849605,6.5966,152.84,152.74,0.8228107]
[1723093849810,0.17,152.83,152.74,0.8228107]
[1723093850016,6.5966,152.84,152.75,1.30896633]
[1723093850192,6.5966,152.84,152.74,0.8228107]
[1723093850587,6.5966,152.84,152.75,37.03]
[1723093850795,6.5966,152.84,152.76,46.47865499]
[1723093851092,6.5966,152.84,152.77,1.47864605]
[1723093851493,6.5966,152.84,152.78,37.03]
[1723093851692,15.4438,152.85,152.79,46.47848485]
[1723093851890,15.4438,152.85,152.79,45.17]
[1723093853511,15.4438,152.85,152.8,1.30846858]
[1723093853708,6.4716,152.88,152.81,37.2]
[1723093853902,15.3396,152.89,152.84,37.03]
[1723093854109,15.3396,152.89,152.85,1.47806174]
[1723093854308,15.2018,152.93,152.87,37.03]
[1723093854491,15.2018,152.93,152.88,46.64770664]
[1723093854991,15.2018,152.93,152.88,45.17]
[1723093855215,15.2018,152.93,152.89,1.307788]
[1723093855508,15.2018,152.93,152.88,45.17]
[1723093855509,15.2018,152.93,152.9,1.30772382]
[1723093855718,6.0078,152.96,152.9,1.30772382]
[1723093855896,6.0078,152.96,152.91,0.17]
[1723093856101,6.0078,152.96,152.91,45.17]
[1723093856690,6.0078,152.96,152.91,45.0]
[1723093858219,6.0078,152.96,152.84,37.03]
[1723093858418,6.0078,152.96,152.85,45.34]
[1723093859023,6.0078,152.96,152.87,37.03]
[1723093859232,6.0078,152.96,152.88,45.34]
[1723093859927,6.0078,152.96,152.88,45.17]
[1723093861240,6.0078,152.96,152.84,37.03]
[1723093861419,6.0078,152.96,152.85,0.17]
[1723093862423,6.0078,152.96,152.87,36.93]
[1723093862635,6.0078,152.96,152.88,46.47759245]
[1723093862940,6.0078,152.96,152.88,46.64759245]
[1723093863263,6.0078,152.96,152.88,45.34]
[1723093863412,6.0078,152.96,152.88,45.17]
[1723093864429,6.0078,152.96,152.84,37.03]
[1723093864632,6.0078,152.96,152.82,7.75123958]
[1723093864833,0.17,152.95,152.82,7.75123958]
[1723093865834,0.17,152.95,152.83,20.0]
[1723093867446,0.17,152.95,152.84,45.17]
[1723093867626,0.17,152.95,152.83,1.30803411]
[1723093867840,6.4469,152.93,152.78,43.1416]
[1723093868125,16.026,152.91,152.78,37.03]
[1723093868326,0.17,152.9,152.78,37.03]
[1723093868949,6.0397,152.89,152.78,37.03]
[1723093869547,16.026,152.87,152.75,37.03]
[1723093869749,0.17,152.86,152.74,0.8228107]
[1723093869922,6.2672,152.85,152.74,0.8228107]
[1723093870118,0.17,152.84,152.74,0.8228107]
[1723093871845,6.2672,152.85,152.75,37.03]
[1723093872143,6.2672,152.85,152.76,1.30860756]
[1723093872351,6.2672,152.85,152.76,45.0]
[1723093873627,16.0709,152.84,152.76,45.0]
[1723093874036,16.0709,152.84,152.77,1.30881432]
[1723093874220,16.0709,152.84,152.76,45.0]
[1723093874840,15.9009,152.84,152.77,1.30891592]
[1723093875044,15.9009,152.84,152.76,45.0]
[1723093875463,0.17,152.83,152.76,45.0]
[1723093875641,0.17,152.83,152.74,0.8228107]
[1723093875836,22.0939,152.82,152.74,45.8228107]
[1723093876059,0.17,152.81,152.74,0.8228107]
[1723093876359,0.34,152.81,152.74,0.8228107]
[1723093876652,15.536,152.8,152.74,0.8228107]
[1723093876957,0.34,152.79,152.74,0.8228107]
[1723093877155,6.0648,152.78,152.74,0.8228107]
[1723093877331,0.17,152.77,152.64,43.85715235]
[1723093877652,16.4924,152.76,152.64,43.85715235]
[1723093877834,0.17,152.75,152.64,43.85715235]
[1723093878031,16.4924,152.76,152.67,37.03]
[1723093878748,16.4924,152.76,152.68,46.30954053]
[1723093879163,16.4924,152.76,152.7,37.03]
[1723093879330,16.4924,152.76,152.71,46.30922752]
[1723093879642,6.0648,152.78,152.72,0.17]
[1723093880054,6.0648,152.78,152.71,45.0]
[1723093880555,6.0648,152.78,152.72,1.30930976]
[1723093880730,6.0648,152.78,152.71,45.0]
[1723093880935,6.0648,152.78,152.72,0.17]
[1723093882458,6.0648,152.78,152.71,45.0]
[1723093883865,0.17,152.77,152.67,37.03]
[1723093884033,6.0648,152.78,152.64,43.85715235]
[1723093884231,16.4765,152.76,152.64,43.85715235]
[1723093884447,16.4765,152.76,152.67,37.03]
[1723093884653,16.4765,152.76,152.68,1.30936989]
[1723093884844,16.4765,152.76,152.67,37.03]
[1723093885045,16.4765,152.76,152.68,1.30937463]
[1723093885246,16.4765,152.76,152.68,46.30937463]
[1723093885457,16.4765,152.76,152.68,46.30957827]
[1723093885658,16.4765,152.76,152.68,45.0]
[1723093885866,16.4765,152.76,152.68,46.30918121]
[1723093886536,16.4765,152.76,152.69,0.17]
[1723093887569,16.4765,152.76,152.68,45.0]
[1723093887733,0.17,152.75,152.64,37.03]
[1723093888064,0.17,152.75,152.65,21.30970791]
[1723093888746,0.17,152.75,152.65,20.0]
[1723093888945,0.17,152.75,152.66,1.3097077]
[1723093889460,0.17,152.75,152.65,45.0]
[1723093890235,16.4765,152.76,152.65,45.0]
[1723093890438,16.4765,152.76,152.66,0.34]
[1723093890636,16.4765,152.76,152.66,0.17]
[1723093891077,0.17,152.75,152.66,0.17]
[1723093891440,16.4765,152.76,152.66,0.17]
[1723093891959,6.3012,152.74,152.64,6.82978335]
[1723093892161,0.17,152.73,152.61,38.33985208]
[1723093892363,15.1252,152.72,152.61,37.03]
[1723093892564,0.17,152.71,152.59,7.65525165]
[1723093892935,6.4807,152.7,152.59,7.65525165]
[1723093893169,0.34,152.69,152.59,7.65525165]
[1723093893366,0.17,152.69,152.59,7.65525165]
[1723093893863,16.6529,152.68,152.59,0.8228107]
[1723093894055,0.17,152.67,152.59,0.8228107]
[1723093894363,6.3641,152.66,152.59,0.8228107]
[1723093894572,0.34,152.65,152.59,0.8228107]
[1723093895046,15.8947,152.64,152.59,0.8228107]
[1723093895249,0.17,152.63,152.59,0.8228107]
[1723093895476,0.34,152.63,152.59,0.8228107]
[1723093895772,6.3117,152.62,152.52,5.0]
[1723093895972,0.17,152.61,152.52,5.0]
[1723093896647,6.3117,152.62,152.52,5.0]
[1723093897069,0.17,152.61,152.52,5.0]
[1723093897439,0.34,152.61,152.52,5.0]
[1723093897669,15.1369,152.6,152.52,5.0]
[1723093898253,0.17,152.59,152.52,5.0]
[1723093899460,0.34,152.59,152.52,5.0]
[1723093900671,0.17,152.59,152.52,5.0]
[1723093900878,0.34,152.59,152.52,5.0]
[1723093901044,6.467,152.58,152.52,5.0]
[1723093901246,16.0376,152.56,152.52,5.0]
[1723093901446,0.34,152.55,152.52,5.0]
[1723093902169,6.0153,152.54,152.44,2.13432535]
[1723093902678,6.0153,152.54,152.48,37.03]
[1723093902892,16.0376,152.56,152.48,37.03]
[1723093903471,16.0376,152.56,152.49,45.17]
[1723093903866,16.0376,152.56,152.49,46.31119252]
[1723093904054,389.1,152.57,152.49,46.31119252]
[1723093904055,389.1,152.57,152.51,37.03]
[1723093904258,6.2906,152.58,152.52,45.0]
[1723093905257,15.586,152.6,152.52,45.0]
[1723093905459,15.586,152.6,152.52,46.31082894]
[1723093905759,15.586,152.6,152.52,45.0]
[1723093906463,15.586,152.6,152.53,0.17]
[1723093906847,15.586,152.6,152.54,37.03]
[1723093907049,15.586,152.6,152.55,45.17]
[1723093907363,15.586,152.6,152.55,45.0]
[1723093907671,15.586,152.6,152.51,37.03]
[1723093908477,0.17,152.59,152.51,37.03]
[1723093908672,15.586,152.6,152.51,37.03]
[1723093909362,15.586,152.6,152.52,46.31094711]
[1723093910262,6.3878,152.59,152.52,1.31094711]
[1723093910467,0.17,152.58,152.48,37.03]
[1723093910669,0.17,152.58,152.48,38.34114693]
[1723093910979,6.5578,152.59,152.49,1.31126199]
[1723093911150,6.3878,152.59,152.49,1.31113812]
[1723093913172,6.3878,152.59,152.49,46.31113812]
[1723093913873,16.5591,152.57,152.45,37.03]
[1723093914074,20.34,152.56,152.45,37.03]
[1723093914656,20.34,152.56,152.44,7.65926114]
[1723093914881,20.34,152.56,152.44,0.8228107]
[1723093915058,6.1994,152.55,152.44,2.13443693]
[1723093915259,0.34,152.54,152.44,2.13443693]
[1723093915565,0.34,152.54,152.44,0.8228107]
[1723093917366,0.17,152.54,152.45,1.31165546]
[1723093918100,0.17,152.54,152.46,1.31152638]
[1723093918101,21.2979,152.53,152.46,1.31152638]
[1723093918383,20.34,152.52,152.44,0.8228107]
[1723093919169,15.6767,152.51,152.44,0.8228107]
[1723093919379,0.17,152.5,152.44,0.8228107]
[1723093919788,0.34,152.5,152.44,0.8228107]
[1723093920291,6.6466,152.49,152.44,0.8228107]
[1723093920899,0.17,152.48,152.44,0.8228107]
[1723093921887,0.34,152.48,152.44,0.8228107]
[1723093922088,16.4106,152.47,152.44,0.8228107]
[1723093922269,0.17,152.46,152.44,0.8228107]
[1723093922586,16.4106,152.47,152.44,0.8228107]
[1723093924186,6.6466,152.49,152.44,0.8228107]
[1723093924490,15.6813,152.5,152.44,0.8228107]
[1723093924792,15.6813,152.5,152.44,2.13435028]
[1723093924984,6.6526,152.53,152.45,0.17]
[1723093925483,6.5539,152.58,152.48,37.03]
[1723093925484,6.6526,152.58,152.48,37.03]
[1723093925674,6.6526,152.58,152.53,28.92]
[1723093925997,15.6813,152.6,152.55,28.92]
[1723093926873,15.6813,152.6,152.49,28.92]
[1723093927064,28.92,152.59,152.47,28.92]
[1723093927279,15.6813,152.6,152.49,28.92]
[1723093927490,20.0,152.59,152.5,45.0]
[1723093927779,26.5535,152.59,152.48,45.0]
[1723093927966,0.17,152.58,152.48,45.0]
[1723093928677,0.34,152.58,152.48,45.0]
[1723093929387,6.5543,152.57,152.48,45.0]
[1723093929568,0.34,152.56,152.44,38.0328107]
[1723093929993,0.17,152.56,152.45,1.31144857]
[1723093930179,30.47586089,152.59,152.46,1.31123417]
[1723093930379,0.17,152.58,152.47,37.21]
[1723093930691,0.17,152.58,152.48,1.3112161]
[1723093930890,0.17,152.58,152.47,37.21]
[1723093931078,0.34,152.58,152.48,1.31123766]
[1723093931262,0.17,152.58,152.47,37.21]
[1723093931461,0.34,152.58,152.47,37.21]
[1723093931667,0.34,152.58,152.48,1.31129674]
[1723093931862,0.34,152.58,152.47,37.21]
[1723093931863,0.34,152.58,152.49,1.31125824]
[1723093932468,0.34,152.58,152.47,37.21]
[1723093932897,6.5548,152.56,152.44,38.0328107]
[1723093933064,0.34,152.55,152.44,38.0328107]
[1723093933474,15.4158,152.54,152.44,38.0328107]
[1723093933786,0.17,152.53,152.44,38.0328107]
[1723093934381,15.4158,152.54,152.45,1.31142936]
[1723093934579,15.4158,152.54,152.46,1.31145606]
[1723093934871,15.4158,152.54,152.45,45.17]
[1723093935310,15.4158,152.54,152.46,1.31132317]
[1723093935485,15.4158,152.54,152.47,0.17]
[1723093935993,15.4158,152.54,152.46,0.17]
[1723093936176,6.3365,152.57,152.45,45.0]
[1723093936377,6.3365,152.57,152.47,37.21]
[1723093936571,6.3365,152.57,152.48,45.0]
[1723093937891,0.17,152.56,152.48,45.0]
[1723093938273,0.17,152.56,152.46,0.17]
[1723093938476,0.34,152.56,152.45,45.17]
[1723093938695,0.34,152.56,152.44,38.0328107]
[1723093938910,0.34,152.56,152.45,1.31155102]
[1723093939072,0.34,152.56,152.44,38.0328107]
[1723093939267,15.785,152.55,152.44,0.8228107]
[1723093939482,0.34,152.54,152.44,0.8228107]
[1723093940195,0.17,152.54,152.44,0.8228107]
[1723093940370,15.785,152.55,152.44,0.8228107]
[1723093940787,0.17,152.54,152.44,0.8228107]
[1723093940995,0.34,152.54,152.44,0.8228107]
[1723093941485,6.8959,152.54,152.44,0.8228107]
[1723093941685,13.1068,152.53,152.44,0.8228107]
[1723093941882,0.17,152.52,152.44,0.8228107]
[1723093944406,15.8891,152.51,152.44,0.8228107]
[1723093944584,0.17,152.5,152.44,0.8228107]
[1723093944785,0.34,152.5,152.44,0.8228107]
[1723093945906,6.2709,152.49,152.44,0.8228107]
[1723093946203,0.34,152.48,152.44,0.8228107]
[1723093948104,21.6233,152.47,152.37,6.84296893]
[1723093948316,20.34,152.46,152.32,52.6359]
[1723093948602,20.34,152.46,152.33,1.31241958]
[1723093948977,0.17,152.46,152.35,37.21]
[1723093949180,0.17,152.46,152.36,1.31218626]
[1723093949581,0.17,152.46,152.37,0.17]
[1723093949781,0.17,152.46,152.4,28.97]
[1723093949982,0.17,152.46,152.38,28.97]
[1723093950290,0.34,152.46,152.38,28.97]
[1723093951112,20.34,152.46,152.36,28.97]
[1723093951294,45.0,152.45,152.36,28.97]
[1723093951505,0.34,152.44,152.36,28.97]
[1723093951705,0.34,152.44,152.33,1.31259693]
[1723093951885,21.6012,152.43,152.34,28.97]
[1723093952413,0.17,152.42,152.34,28.97]
[1723093952901,0.34,152.42,152.32,28.97]
[1723093953080,6.4441,152.4,152.3,28.97]
[1723093953277,0.34,152.39,152.3,28.97]
[1723093953482,6.9025,152.39,152.3,28.97]
[1723093953684,0.17,152.39,152.32,28.97]
[1723093953899,6.4441,152.4,152.34,28.97]
[1723093954829,6.4441,152.4,152.29,2.13546082]
[1723093955112,6.4441,152.4,152.34,28.97]
[1723093957118,0.17,152.39,152.34,28.97]
[1723093957494,0.17,152.39,152.32,28.97]
[1723093957693,0.34,152.39,152.32,28.97]
[1723093957892,0.34,152.39,152.3,28.97]
[1723093958219,0.17,152.39,152.32,28.97]
[1723093958420,0.34,152.39,152.32,28.97]
[1723093959922,0.34,152.39,152.3,28.97]
[1723093960214,20.34,152.39,152.3,28.97]
[1723093961197,20.0,152.39,152.3,28.97]
[1723093962308,20.0,152.39,152.32,28.97]
[1723093962513,6.4441,152.4,152.32,28.97]
[1723093962905,6.4441,152.4,152.29,0.8228107]
[1723093963103,6.4441,152.4,152.31,28.97]
[1723093963308,13.0059,152.4,152.31,28.97]
[1723093963621,20.0,152.39,152.31,28.97]
[1723093963823,0.34,152.38,152.31,28.97]
[1723093965607,0.34,152.38,152.29,29.7928107]
[1723093966309,0.17,152.38,152.31,28.97]
[1723093967224,20.0,152.39,152.31,28.97]
[1723093967428,6.4441,152.4,152.33,28.97]
[1723093968502,6.4441,152.4,152.31,28.97]
[1723093968723,20.0,152.39,152.31,28.97]
[1723093969098,0.17,152.38,152.31,28.97]
[1723093972016,6.4441,152.4,152.35,28.97]
[1723093972830,6.4441,152.4,152.37,28.97]
[1723093973010,15.5147,152.41,152.37,28.97]
[1723093973215,6.54,152.44,152.39,28.97]
[1723093973594,6.54,152.44,152.37,28.97]
[1723093975322,6.54,152.44,152.38,45.0]
[1723093975510,6.54,152.44,152.37,28.97]
[1723093976738,15.0693,152.45,152.37,28.97]
[1723093977027,15.0693,152.45,152.41,28.97]
[1723093977254,6.2283,152.48,152.43,28.97]
[1723093978006,15.3372,152.49,152.43,28.97]
[1723093978204,15.3372,152.49,152.44,45.0]
[1723093978715,15.3372,152.49,152.45,28.97]
[1723093978899,6.2283,152.52,152.47,28.97]
[1723093979110,6.2283,152.52,152.48,1.31155149]
[1723093979406,6.2283,152.52,152.47,30.28143652]
[1723093979616,6.2283,152.52,152.47,28.97]
[1723093981131,15.3372,152.53,152.47,28.97]
[1723093982419,0.17,152.52,152.45,28.97]
[1723093982932,0.34,152.52,152.41,28.97]
[1723093983228,6.5578,152.49,152.39,28.97]
[1723093983431,45.4876,152.48,152.33,1.31202915]
[1723093983730,20.0,152.47,152.37,28.97]
[1723093983911,0.17,152.46,152.37,28.97]
[1723093984229,0.17,152.46,152.33,28.97]
[1723093984230,45.1476,152.44,152.33,28.97]
[1723093984428,6.5608,152.42,152.33,28.97]
[1723093984601,0.17,152.41,152.33,28.97]
[1723093985013,0.34,152.41,152.31,28.97]
[1723093985424,6.9012,152.41,152.31,28.97]
[1723093985611,22.7116,152.39,152.31,28.97]
[1723093986428,0.34,152.38,152.29,29.7928107]
[1723093986605,20.34,152.38,152.29,29.7928107]
[1723093986810,49.31,152.38,152.29,0.8228107]
[1723093987316,6.564,152.35,152.29,0.8228107]
[1723093987520,0.34,152.34,152.29,0.8228107]
[1723093988234,0.17,152.34,152.29,0.8228107]
[1723093988528,15.2063,152.31,152.29,0.8228107]
[1723093988730,0.17,152.3,152.29,0.8228107]
[1723093991143,0.17,152.3,152.25,6.0]
[1723093991347,0.34,152.3,152.25,6.0]
[1723093991720,0.17,152.3,152.25,6.0]
[1723093992025,0.34,152.3,152.25,6.0]
[1723093993040,20.34,152.3,152.25,6.0]
[1723093994213,45.0,152.29,152.25,6.0]
[1723093994420,20.34,152.28,152.25,6.0]
[1723093994722,6.6312,152.26,152.13,53.7785107]
[1723093994912,20.34,152.25,152.13,53.7785107]
[1723093995324,15.6076,152.24,152.13,0.8228107]
[1723093995649,0.34,152.23,152.13,0.8228107]
[1723093996718,20.34,152.23,152.13,0.8228107]
[1723093996913,6.5702,152.21,152.13,0.8228107]
[1723093997117,65.34,152.2,152.13,0.8228107]
[1723093997522,6.5707,152.19,152.13,0.8228107]
[1723093997718,71.7412,152.18,152.13,0.8228107]
[1723093998046,15.715,152.16,152.13,0.8228107]
[1723093998359,0.17,152.15,152.13,0.8228107]
[1723093998921,20.0,152.2,152.13,0.8228107]
[1723093999147,16.1855,152.21,152.13,0.8228107]
[1723093999443,16.1855,152.21,152.19,6.5706]
[1723093999661,16.1855,152.21,152.17,6.5712]
[1723094000148,16.1855,152.21,152.13,0.8228107]
[1723094000451,16.1855,152.21,152.17,6.5714]
[1723094000746,16.1855,152.21,152.13,0.8228107]
[1723094001645,16.1855,152.21,152.13,2.1371661]
[1723094001955,16.1855,152.21,152.13,0.8228107]
[1723094002119,20.0,152.2,152.13,0.8228107]
[1723094002321,0.17,152.19,152.13,0.8228107]
[1723094003248,45.34,152.19,152.13,0.8228107]
[1723094003750,6.5716,152.17,152.13,0.8228107]
[1723094004044,26.912,152.16,152.13,0.8228107]
[1723094004250,20.0,152.15,152.13,0.8228107]
[1723094004421,0.34,152.14,152.13,0.8228107]
[1723094004850,0.17,152.14,152.13,0.8228107]
[1723094006050,0.34,152.14,152.13,0.8228107]
[1723094006251,26.9544,152.14,152.07,6.5758]
[1723094006436,33.5274,152.14,152.08,6.5754]
[1723094006749,33.5274,152.14,152.09,6.5748]
[1723094006750,26.9544,152.14,152.09,6.5748]
[1723094007056,33.5273,152.14,152.08,6.5751]
[1723094007467,33.5273,152.14,152.09,6.5749]
[1723094008347,26.9544,152.14,152.09,6.5749]
[1723094008845,33.5273,152.14,152.09,6.5749]
[1723094009043,26.6144,152.14,152.0,59.72921837]
[1723094009246,6.1056,152.18,152.06,37.33]
[1723094009646,6.5716,152.17,152.12,6.5736]
[1723094010042,6.1056,152.18,152.06,37.33]
[1723094010241,6.1056,152.18,152.14,6.5726]
[1723094010444,6.1056,152.18,152.06,37.33]
[1723094010891,6.1056,152.18,152.15,6.5724]
[1723094011044,16.1855,152.21,152.17,6.5715]
[1723094011246,16.1855,152.21,152.09,53.6724]
[1723094011457,6.5715,152.18,152.11,6.5737]
[1723094011767,6.5715,152.18,152.08,6.4339]
[1723094011768,6.5715,152.18,152.12,6.5737]
[1723094011972,6.5716,152.17,152.12,6.5737]
[1723094012347,0.17,152.16,152.05,15.7238]
[1723094012553,6.742,152.16,152.05,15.7238]
[1723094012745,0.17,152.16,152.11,6.5741]
[1723094013066,0.17,152.16,152.12,6.5737]
[1723094013249,20.17,152.17,152.13,6.5731]
[1723094013566,20.17,152.17,152.12,6.5737]
[1723094013743,20.17,152.17,152.05,15.7238]
[1723094014073,16.1855,152.21,152.06,83.8148304]
[1723094014363,16.1855,152.21,152.09,37.33]
[1723094014544,16.1855,152.21,152.1,0.17]
[1723094014750,16.1855,152.21,152.1,46.48442364]
[1723094014965,15.9797,152.26,152.24,6.5684]
[1723094015180,15.9797,152.26,152.14,6.4951]
[1723094015181,6.3294,152.27,152.25,6.5681]
[1723094015757,6.3294,152.27,152.15,38.64383829]
[1723094015956,6.3294,152.27,152.16,45.17]
[1723094017352,6.3294,152.27,152.15,37.33]
[1723094017949,6.5678,152.26,152.15,37.33]
[1723094018151,12.8966,152.27,152.15,38.64413052]
[1723094018352,0.17,152.26,152.16,45.0]
[1723094019251,0.17,152.26,152.15,37.33]
[1723094019465,0.17,152.26,152.15,38.64406293]
[1723094019765,0.17,152.26,152.16,45.0]
[1723094020157,0.17,152.26,152.15,37.33]
[1723094021368,0.17,152.26,152.16,45.0]
[1723094021549,0.17,152.26,152.15,37.33]
[1723094022151,0.17,152.26,152.16,45.0]
[1723094023076,0.17,152.26,152.15,37.33]
[1723094023255,0.17,152.26,152.16,45.0]
[1723094023777,0.17,152.26,152.15,37.33]
[1723094024279,6.7377,152.26,152.15,37.33]
[1723094024472,0.17,152.25,152.13,15.7556]
[1723094024669,20.17,152.26,152.14,1.3142639]
[1723094024867,20.17,152.26,152.15,1.31407467]
[1723094025375,20.17,152.26,152.15,1.31418621]
[1723094025584,0.17,152.26,152.15,1.31418621]
[1723094026264,6.3294,152.27,152.15,38.64418621]
[1723094026578,6.3294,152.27,152.16,45.0]
[1723094026953,12.8966,152.27,152.16,45.0]
[1723094027576,6.3294,152.27,152.16,45.0]
[1723094027784,6.3294,152.27,152.17,1.31388012]
[1723094028079,6.3294,152.27,152.18,1.31388012]
[1723094028451,6.3294,152.27,152.18,38.64388012]
[1723094028653,389.1,152.29,152.18,38.64388012]
[1723094028884,389.1,152.29,152.19,45.0]
[1723094029059,389.1,152.29,152.2,1.31361905]
[1723094029261,389.1,152.29,152.21,1.31361948]
[1723094029463,389.1,152.29,152.19,45.0]
[1723094029780,389.1,152.29,152.15,37.33]
[1723094030359,389.1,152.29,152.15,38.64404026]
[1723094030360,0.17,152.28,152.15,38.64404026]
[1723094031081,15.9797,152.3,152.15,38.64404026]
[1723094031277,0.17,152.29,152.15,38.64404026]
[1723094031467,0.17,152.29,152.16,0.17]
[1723094031672,0.17,152.29,152.19,29.05]
[1723094034173,0.34,152.29,152.19,29.05]
[1723094034685,0.17,152.29,152.2,1.31383902]
[1723094035385,0.17,152.29,152.19,30.36377935]
[1723094035586,15.9797,152.3,152.23,29.05]
[1723094036590,15.0669,152.34,152.25,29.05]
[1723094036773,6.327,152.35,152.27,29.05]
[1723094037382,12.8908,152.35,152.27,29.05]
[1723094037599,6.327,152.35,152.25,29.05]
[1723094039567,6.327,152.35,152.27,29.05]
[1723094039767,6.327,152.35,152.29,29.05]
[1723094040380,6.327,152.35,152.27,29.05]
[1723094041703,6.327,152.35,152.22,7.56411551]
[1723094041704,15.0669,152.38,152.31,29.05]